[Event "*** Titled Tuesday Blitz"]
[Site "Chess.com"]
[Date "2020.04.21"]
[Round "6"]
[White "Stewie_89"]
[Black "nabukatnezarr"]
[Result "0-1"]
[WhiteElo "2626"]
[BlackElo "2500"]
[TimeControl "180+1"]
[EndTime "11:09:45 PDT"]
[Termination "nabukatnezarr won on time"]

1. e4 {[%clk 0:03:00.9]} 1... c5 {[%clk 0:03:00.2]} 2. Nf3 {[%clk 0:03:00.6]}
2... d6 {[%clk 0:03:00.6]} 3. Bb5+ {[%clk 0:03:00.1]} 3... Nd7 {[%clk
0:02:57.2]} 4. O-O {[%clk 0:02:59.2]} 4... a6 {[%clk 0:02:55.7]} 5. Bxd7+ {[%clk
0:02:57.1]} 5... Bxd7 {[%clk 0:02:56.4]} 6. d4 {[%clk 0:02:57.6]} 6... e6 {[%clk
0:02:56.3]} 7. c4 {[%clk 0:02:46.4]} 7... cxd4 {[%clk 0:02:54.8]} 8. Nxd4 {[%clk
0:02:45.6]} 8... Rc8 {[%clk 0:02:52.7]} 9. b3 {[%clk 0:02:44.8]} 9... g6 {[%clk
0:02:50.4]} 10. Bb2 {[%clk 0:02:43.6]} 10... Nf6 {[%clk 0:02:44.4]} 11. Nc3
{[%clk 0:02:15.6]} 11... Be7 {[%clk 0:02:39.9]} 12. Qd2 {[%clk 0:02:14.6]} 12...
O-O {[%clk 0:02:39.9]} 13. Rad1 {[%clk 0:02:12]} 13... Bc6 {[%clk 0:02:34.4]}
14. Qe2 {[%clk 0:02:04.1]} 14... Re8 {[%clk 0:02:25.1]} 15. e5 {[%clk
0:02:01.5]} 15... Nh5 {[%clk 0:01:56.1]} 16. Nxc6 {[%clk 0:01:53.3]} 16... Rxc6
{[%clk 0:01:54]} 17. Ne4 {[%clk 0:01:28]} 17... d5 {[%clk 0:01:45.4]} 18. g4
{[%clk 0:01:26.5]} 18... Nf4 {[%clk 0:01:35.2]} 19. Qe3 {[%clk 0:01:13]} 19...
g5 {[%clk 0:01:35]} 20. Nf6+ {[%clk 0:00:51.4]} 20... Bxf6 {[%clk 0:01:35]} 21.
exf6 {[%clk 0:00:51.3]} 21... h6 {[%clk 0:00:52.1]} 22. h4 {[%clk 0:00:44.4]}
22... e5 {[%clk 0:00:35.2]} 23. hxg5 {[%clk 0:00:43.1]} 23... d4 {[%clk
0:00:30.5]} 24. Bxd4 {[%clk 0:00:38.5]} 24... hxg5 {[%clk 0:00:23.2]} 25. Bxe5
{[%clk 0:00:22.4]} 25... Qc8 {[%clk 0:00:23.5]} 26. f3 {[%clk 0:00:14.4]} 26...
Rce6 {[%clk 0:00:22.6]} 27. Rfe1 {[%clk 0:00:14.5]} 27... Rxe5 {[%clk
0:00:21.2]} 28. Qxe5 {[%clk 0:00:15.4]} 28... Rxe5 {[%clk 0:00:22]} 29. Rxe5
{[%clk 0:00:14.8]} 29... Kh7 {[%clk 0:00:17.8]} 30. Rxg5 {[%clk 0:00:11.5]}
30... Qc6 {[%clk 0:00:18.1]} 31. Rf1 {[%clk 0:00:08.7]} 31... Qd6 {[%clk
0:00:16.4]} 32. Rf5 {[%clk 0:00:08.7]} 32... Qd4+ {[%clk 0:00:15.5]} 33. Kh2
{[%clk 0:00:08.1]} 33... Ng6 {[%clk 0:00:11.4]} 34. Kg3 {[%clk 0:00:05.2]} 34...
Qd6+ {[%clk 0:00:11.7]} 35. Kg2 {[%clk 0:00:05.3]} 35... Qd2+ {[%clk 0:00:11.8]}
36. Rf2 {[%clk 0:00:05.2]} 36... Qd1 {[%clk 0:00:11]} 37. Rh5+ {[%clk
0:00:05.3]} 37... Kg8 {[%clk 0:00:10.8]} 38. Rg5 {[%clk 0:00:05.3]} 38... Qc1
{[%clk 0:00:10.5]} 39. Rxg6+ {[%clk 0:00:04.4]} 39... fxg6 {[%clk 0:00:10.7]}
40. Re2 {[%clk 0:00:05.1]} 40... Kf7 {[%clk 0:00:10.6]} 41. Re7+ {[%clk
0:00:04.9]} 41... Kxf6 {[%clk 0:00:11]} 42. Rxb7 {[%clk 0:00:05.8]} 42... Qc2+
{[%clk 0:00:11.3]} 43. Kg3 {[%clk 0:00:05]} 43... Qxa2 {[%clk 0:00:12.2]} 44.
Rb6+ {[%clk 0:00:05.4]} 44... Kf7 {[%clk 0:00:12.7]} 45. g5 {[%clk 0:00:05.9]}
45... a5 {[%clk 0:00:12.8]} 46. Rb7+ {[%clk 0:00:06.2]} 46... Ke6 {[%clk
0:00:12.2]} 47. Kg4 {[%clk 0:00:04.2]} 47... Qg2+ {[%clk 0:00:11.6]} 48. Kf4
{[%clk 0:00:04.5]} 48... Qh2+ {[%clk 0:00:11.7]} 49. Kg4 {[%clk 0:00:05.1]}
49... Qg2+ {[%clk 0:00:10.8]} 50. Kf4 {[%clk 0:00:05.3]} 50... Qh2+ {[%clk
0:00:10.9]} 51. Ke4 {[%clk 0:00:05.4]} 51... Qh5 {[%clk 0:00:11.6]} 52. Rb6+
{[%clk 0:00:04.7]} 52... Ke7 {[%clk 0:00:12]} 53. f4 {[%clk 0:00:05.1]} 53...
Qe2+ {[%clk 0:00:11.8]} 54. Kd5 {[%clk 0:00:05.3]} 54... Kd7 {[%clk 0:00:11.5]}
55. Kc5 {[%clk 0:00:03.6]} 55... Qe3+ {[%clk 0:00:11.5]} 56. Kb5 {[%clk
0:00:03.8]} 56... Qxb3+ {[%clk 0:00:11.2]} 57. Kxa5 {[%clk 0:00:02.8]} 57...
Qxc4 {[%clk 0:00:11.6]} 0-1

[Event "*** Titled Tuesday Blitz"]
[Site "Chess.com"]
[Date "2020.04.21"]
[Round "6"]
[White "Yeytruyol"]
[Black "Ekka83"]
[Result "0-1"]
[WhiteElo "2384"]
[BlackElo "2281"]
[TimeControl "180+1"]
[EndTime "11:09:45 PDT"]
[Termination "Ekka83 won by resignation"]

1. e4 {[%clk 0:03:00.9]} 1... d5 {[%clk 0:02:58.2]} 2. exd5 {[%clk 0:03:00.5]}
2... Qxd5 {[%clk 0:02:59.1]} 3. Nc3 {[%clk 0:03:00.9]} 3... Qd6 {[%clk
0:02:58.7]} 4. Nf3 {[%clk 0:03:01.6]} 4... c6 {[%clk 0:02:58.6]} 5. d4 {[%clk
0:03:02]} 5... Bg4 {[%clk 0:02:58.3]} 6. Be3 {[%clk 0:03:00.4]} 6... Nf6 {[%clk
0:02:57.8]} 7. h3 {[%clk 0:02:59.9]} 7... Bh5 {[%clk 0:02:56.5]} 8. g4 {[%clk
0:02:57.9]} 8... Bg6 {[%clk 0:02:56.1]} 9. Ne5 {[%clk 0:02:58.6]} 9... e6 {[%clk
0:02:54.4]} 10. Bf4 {[%clk 0:02:49.9]} 10... Qd8 {[%clk 0:02:53.1]} 11. Bg2
{[%clk 0:02:47.1]} 11... Nbd7 {[%clk 0:02:51.9]} 12. Nxg6 {[%clk 0:02:46.7]}
12... hxg6 {[%clk 0:02:51.3]} 13. O-O {[%clk 0:02:46.1]} 13... Nd5 {[%clk
0:02:41.9]} 14. Bd2 {[%clk 0:02:41.2]} 14... N7f6 {[%clk 0:02:31]} 15. Re1
{[%clk 0:02:31.5]} 15... Be7 {[%clk 0:02:18]} 16. Qf3 {[%clk 0:02:22.5]} 16...
Nb4 {[%clk 0:02:11.4]} 17. Ne4 {[%clk 0:01:20.3]} 17... Nxc2 {[%clk 0:02:06.8]}
18. Qb3 {[%clk 0:01:08.5]} 18... Nxa1 {[%clk 0:01:47.5]} 19. Rxa1 {[%clk
0:01:06.1]} 19... Qb6 {[%clk 0:01:44.1]} 20. Nxf6+ {[%clk 0:01:01.6]} 20... Bxf6
{[%clk 0:01:38.5]} 21. Qa3 {[%clk 0:00:59.7]} 21... Bxd4 {[%clk 0:01:34.9]} 22.
Rf1 {[%clk 0:00:42.4]} 22... Bc5 {[%clk 0:01:33.8]} 23. Qc3 {[%clk 0:00:35.2]}
23... O-O {[%clk 0:01:31.9]} 24. a3 {[%clk 0:00:32.4]} 24... Rad8 {[%clk
0:01:29.3]} 25. b4 {[%clk 0:00:31.4]} 25... Bd4 {[%clk 0:01:27.7]} 26. Qc2
{[%clk 0:00:31.4]} 26... Be5 {[%clk 0:01:20.8]} 27. Kh1 {[%clk 0:00:24.9]} 27...
Qd4 {[%clk 0:01:15.7]} 28. Be3 {[%clk 0:00:21.1]} 28... Qd3 {[%clk 0:01:15.2]}
29. Qc5 {[%clk 0:00:16.3]} 29... Bd4 {[%clk 0:01:11.9]} 30. Bxd4 {[%clk
0:00:15.7]} 30... Qxd4 {[%clk 0:01:11.3]} 31. Qa5 {[%clk 0:00:13.8]} 31... Rd7
{[%clk 0:01:03.9]} 32. Qa4 {[%clk 0:00:14.3]} 32... a6 {[%clk 0:00:59.5]} 33.
Bf3 {[%clk 0:00:14.5]} 33... Qd3 {[%clk 0:00:58.4]} 34. Kg2 {[%clk 0:00:14.9]}
34... Qb5 {[%clk 0:00:55.1]} 35. Qb3 {[%clk 0:00:14.5]} 35... Rfd8 {[%clk
0:00:53.6]} 36. Qc2 {[%clk 0:00:14.6]} 36... Rd2 {[%clk 0:00:53.1]} 37. Qe4
{[%clk 0:00:15]} 37... Qd3 {[%clk 0:00:51.4]} 38. Qf4 {[%clk 0:00:15]} 38... Qd6
{[%clk 0:00:46.2]} 39. Qe3 {[%clk 0:00:14.4]} 39... Rd3 {[%clk 0:00:42.6]} 40.
Qe4 {[%clk 0:00:14.3]} 40... Rxa3 {[%clk 0:00:42.2]} 41. Rd1 {[%clk 0:00:12.7]}
41... Qe7 {[%clk 0:00:40.9]} 42. Rxd8+ {[%clk 0:00:13.3]} 42... Qxd8 {[%clk
0:00:41.8]} 43. Qe5 {[%clk 0:00:13.7]} 43... Rxf3 {[%clk 0:00:39.1]} 44. Kxf3
{[%clk 0:00:13.4]} 44... Qd5+ {[%clk 0:00:39.4]} 45. Kf4 {[%clk 0:00:14.3]}
45... Qxe5+ {[%clk 0:00:38.8]} 46. Kxe5 {[%clk 0:00:15.2]} 46... b6 {[%clk
0:00:34]} 47. Kd6 {[%clk 0:00:15.4]} 47... a5 {[%clk 0:00:34.2]} 48. bxa5 {[%clk
0:00:15.2]} 48... bxa5 {[%clk 0:00:35.1]} 49. Kc5 {[%clk 0:00:15.5]} 49... Kf8
{[%clk 0:00:34.7]} 50. f3 {[%clk 0:00:14.5]} 50... Ke7 {[%clk 0:00:34.7]} 51. h4
{[%clk 0:00:15.4]} 51... Kd7 {[%clk 0:00:34.6]} 52. f4 {[%clk 0:00:16.3]} 52...
Ke7 {[%clk 0:00:28.7]} 53. h5 {[%clk 0:00:16.8]} 53... gxh5 {[%clk 0:00:28.5]}
54. gxh5 {[%clk 0:00:17.7]} 54... Kf6 {[%clk 0:00:29.1]} 55. Kc4 {[%clk
0:00:17.5]} 55... Kf5 {[%clk 0:00:28.8]} 56. Kb3 {[%clk 0:00:18.1]} 56... Kxf4
{[%clk 0:00:29.3]} 57. Ka4 {[%clk 0:00:18.9]} 57... e5 {[%clk 0:00:29.8]} 58.
Kxa5 {[%clk 0:00:19.8]} 58... e4 {[%clk 0:00:30.5]} 59. Kb4 {[%clk 0:00:20.4]}
59... e3 {[%clk 0:00:30.1]} 60. Kc5 {[%clk 0:00:21.3]} 60... e2 {[%clk
0:00:29.9]} 61. Kd6 {[%clk 0:00:22.2]} 61... e1=Q {[%clk 0:00:30.1]} 62. Kxc6
{[%clk 0:00:21.6]} 62... Qe5 {[%clk 0:00:28.4]} 63. h6 {[%clk 0:00:19.9]} 63...
gxh6 {[%clk 0:00:28.4]} 64. Kd7 {[%clk 0:00:19.3]} 64... Ke4 {[%clk 0:00:28.4]}
65. Kd8 {[%clk 0:00:19.2]} 65... Kd5 {[%clk 0:00:28]} 0-1

[Event "*** Titled Tuesday Blitz"]
[Site "Chess.com"]
[Date "2020.04.21"]
[Round "6"]
[White "igorkovalenko"]
[Black "Tayson_7"]
[Result "1-0"]
[WhiteElo "2884"]
[BlackElo "2722"]
[TimeControl "180+1"]
[EndTime "11:09:46 PDT"]
[Termination "igorkovalenko won on time"]

1. e4 {[%clk 0:02:57.4]} 1... e5 {[%clk 0:03:00.1]} 2. Nf3 {[%clk 0:02:57.4]}
2... Nc6 {[%clk 0:03:00.7]} 3. Bb5 {[%clk 0:02:57.7]} 3... a6 {[%clk 0:03:01.2]}
4. Ba4 {[%clk 0:02:58.1]} 4... Nf6 {[%clk 0:03:01.8]} 5. O-O {[%clk 0:02:55.1]}
5... Be7 {[%clk 0:03:02]} 6. Re1 {[%clk 0:02:55]} 6... b5 {[%clk 0:03:02.5]} 7.
Bb3 {[%clk 0:02:55.2]} 7... d6 {[%clk 0:03:02.7]} 8. c3 {[%clk 0:02:55.5]} 8...
O-O {[%clk 0:03:03.1]} 9. h3 {[%clk 0:02:56.1]} 9... Bb7 {[%clk 0:03:02.7]} 10.
d4 {[%clk 0:02:55.8]} 10... Re8 {[%clk 0:03:02.6]} 11. Nbd2 {[%clk 0:02:54.2]}
11... Bf8 {[%clk 0:03:02.9]} 12. a3 {[%clk 0:02:54.7]} 12... h6 {[%clk
0:03:02.7]} 13. Bc2 {[%clk 0:02:52.8]} 13... Nb8 {[%clk 0:03:02.6]} 14. b4
{[%clk 0:02:52.9]} 14... Nbd7 {[%clk 0:03:02.8]} 15. Bb2 {[%clk 0:02:53.4]}
15... g6 {[%clk 0:02:59.8]} 16. c4 {[%clk 0:02:52.5]} 16... c5 {[%clk
0:02:41.2]} 17. bxc5 {[%clk 0:02:39.8]} 17... dxc5 {[%clk 0:01:55.6]} 18. d5
{[%clk 0:02:30.4]} 18... Rb8 {[%clk 0:01:44]} 19. a4 {[%clk 0:02:17.5]} 19... b4
{[%clk 0:01:39.8]} 20. a5 {[%clk 0:02:17.6]} 20... Bd6 {[%clk 0:01:33.9]} 21.
Nb3 {[%clk 0:02:15.2]} 21... Qc7 {[%clk 0:01:29.9]} 22. Bc1 {[%clk 0:02:15]}
22... Bf8 {[%clk 0:01:25.5]} 23. Be3 {[%clk 0:02:13.1]} 23... Bc8 {[%clk
0:01:23.7]} 24. Qd2 {[%clk 0:02:12.9]} 24... Kh7 {[%clk 0:01:21.3]} 25. Kh2
{[%clk 0:02:11.7]} 25... Bg7 {[%clk 0:01:16.3]} 26. Rg1 {[%clk 0:02:11.4]} 26...
Nh5 {[%clk 0:01:11.3]} 27. g3 {[%clk 0:02:04.5]} 27... Qd6 {[%clk 0:01:08.6]}
28. Rg2 {[%clk 0:01:59.9]} 28... Rb7 {[%clk 0:01:08.3]} 29. Rh1 {[%clk
0:01:50.2]} 29... Rc7 {[%clk 0:01:07.3]} 30. Qc1 {[%clk 0:01:35.6]} 30... Ndf6
{[%clk 0:00:53.7]} 31. Kg1 {[%clk 0:01:09.8]} 31... Ng8 {[%clk 0:00:50.4]} 32.
Bd1 {[%clk 0:01:04.6]} 32... Bf8 {[%clk 0:00:34.5]} 33. Ne1 {[%clk 0:00:52.3]}
33... Nhf6 {[%clk 0:00:33.2]} 34. f3 {[%clk 0:00:50.1]} 34... Bd7 {[%clk
0:00:21.8]} 35. Qa1 {[%clk 0:00:45.6]} 35... Nh5 {[%clk 0:00:15.7]} 36. Nd3
{[%clk 0:00:44.6]} 36... Rec8 {[%clk 0:00:15.8]} 37. h4 {[%clk 0:00:42.4]} 37...
Bg7 {[%clk 0:00:15.1]} 38. Qa2 {[%clk 0:00:32.8]} 38... f5 {[%clk 0:00:15]} 39.
exf5 {[%clk 0:00:29.8]} 39... gxf5 {[%clk 0:00:14.9]} 40. g4 {[%clk 0:00:24.9]}
40... fxg4 {[%clk 0:00:12.5]} 41. fxg4 {[%clk 0:00:25.8]} 41... Nf4 {[%clk
0:00:13]} 42. Qc2 {[%clk 0:00:15.8]} 42... Kh8 {[%clk 0:00:08]} 43. Nxf4 {[%clk
0:00:11.3]} 43... exf4 {[%clk 0:00:08.9]} 44. Bc1 {[%clk 0:00:11.4]} 44... Ba4
{[%clk 0:00:08.9]} 45. g5 {[%clk 0:00:09.6]} 45... f3 {[%clk 0:00:07.7]} 46.
Bxf3 {[%clk 0:00:09.2]} 46... Bxb3 {[%clk 0:00:08]} 47. Qxb3 {[%clk 0:00:09.3]}
47... Rf8 {[%clk 0:00:07.4]} 48. Rh3 {[%clk 0:00:09.2]} 48... Bd4+ {[%clk
0:00:06.1]} 49. Kh1 {[%clk 0:00:09]} 49... Re7 {[%clk 0:00:06.9]} 50. Bd2 {[%clk
0:00:08.6]} 50... Qe5 {[%clk 0:00:06.3]} 51. Qd3 {[%clk 0:00:08.2]} 51... Rf5
{[%clk 0:00:02.4]} 52. gxh6 {[%clk 0:00:08.3]} 52... Nf6 {[%clk 0:00:02.3]} 53.
Rhg3 {[%clk 0:00:08]} 53... Nh5 {[%clk 0:00:01.6]} 54. Rg8+ {[%clk 0:00:07.4]}
54... Kh7 {[%clk 0:00:02.1]} 55. Bg4 {[%clk 0:00:06.3]} 1-0

[Event "*** Titled Tuesday Blitz"]
[Site "Chess.com"]
[Date "2020.04.21"]
[Round "6"]
[White "GelmanAlexander"]
[Black "vlad_Sid"]
[Result "1-0"]
[WhiteElo "2499"]
[BlackElo "2624"]
[TimeControl "180+1"]
[EndTime "11:09:46 PDT"]
[Termination "GelmanAlexander won by resignation"]

1. c4 {[%clk 0:03:00.9]} 1... c5 {[%clk 0:02:59.5]} 2. Nf3 {[%clk 0:03:00.3]}
2... Nc6 {[%clk 0:02:59.7]} 3. e3 {[%clk 0:02:58.5]} 3... Nf6 {[%clk 0:02:58.9]}
4. Be2 {[%clk 0:02:57.3]} 4... g6 {[%clk 0:02:58.3]} 5. d3 {[%clk 0:02:56.6]}
5... Bg7 {[%clk 0:02:58.2]} 6. a3 {[%clk 0:02:55.3]} 6... O-O {[%clk 0:02:58.5]}
7. O-O {[%clk 0:02:55.6]} 7... b6 {[%clk 0:02:58.3]} 8. Nc3 {[%clk 0:02:54.2]}
8... d5 {[%clk 0:02:58.2]} 9. cxd5 {[%clk 0:02:54.2]} 9... Nxd5 {[%clk
0:02:59.1]} 10. Ne4 {[%clk 0:02:54.6]} 10... Bb7 {[%clk 0:02:54.6]} 11. Qc2
{[%clk 0:02:54.5]} 11... Rc8 {[%clk 0:02:53.9]} 12. Bd2 {[%clk 0:02:54.8]} 12...
h6 {[%clk 0:02:50.2]} 13. Rac1 {[%clk 0:02:55.1]} 13... f5 {[%clk 0:02:47.6]}
14. Ng3 {[%clk 0:02:54.6]} 14... Kh7 {[%clk 0:02:45.6]} 15. Qb1 {[%clk
0:02:51.5]} 15... a5 {[%clk 0:02:37.3]} 16. Qc2 {[%clk 0:02:50.8]} 16... e6
{[%clk 0:02:33.4]} 17. h4 {[%clk 0:02:48.5]} 17... Ne5 {[%clk 0:02:26.3]} 18.
Qb3 {[%clk 0:02:06.8]} 18... Qd7 {[%clk 0:02:17.9]} 19. Rfd1 {[%clk 0:02:05.2]}
19... f4 {[%clk 0:02:15.8]} 20. Ne4 {[%clk 0:02:00.1]} 20... fxe3 {[%clk
0:02:13.2]} 21. fxe3 {[%clk 0:02:00.5]} 21... Nxf3+ {[%clk 0:02:11.2]} 22. Bxf3
{[%clk 0:02:00.6]} 22... a4 {[%clk 0:02:06.4]} 23. Qc4 {[%clk 0:01:55.6]} 23...
Bxb2 {[%clk 0:02:01.2]} 24. Rb1 {[%clk 0:01:51.4]} 24... Bxa3 {[%clk 0:02:00.1]}
25. h5 {[%clk 0:01:44.9]} 25... gxh5 {[%clk 0:01:54.6]} 26. Ng3 {[%clk
0:01:28.2]} 26... Rxf3 {[%clk 0:01:30.4]} 27. gxf3 {[%clk 0:01:27.4]} 27... Rg8
{[%clk 0:01:30.8]} 28. Kf2 {[%clk 0:01:18]} 28... Qf7 {[%clk 0:01:30.8]} 29. e4
{[%clk 0:00:57.1]} 29... Nb4 {[%clk 0:00:50.2]} 30. Qc3 {[%clk 0:00:38.3]} 30...
Rf8 {[%clk 0:00:43.3]} 31. f4 {[%clk 0:00:33.6]} 31... Ba6 {[%clk 0:00:42.4]}
32. Be3 {[%clk 0:00:26.2]} 32... h4 {[%clk 0:00:16.5]} 33. Ne2 {[%clk 0:00:26]}
33... e5 {[%clk 0:00:14.3]} 34. Qxa3 {[%clk 0:00:22.9]} 34... exf4 {[%clk
0:00:13.9]} 35. Nxf4 {[%clk 0:00:23.8]} 35... Nc2 {[%clk 0:00:11.3]} 36. Qc1
{[%clk 0:00:20]} 36... Nxe3 {[%clk 0:00:12.2]} 37. Qxe3 {[%clk 0:00:20]} 37...
Bc8 {[%clk 0:00:08.7]} 38. Kf3 {[%clk 0:00:15.3]} 38... Qh5+ {[%clk 0:00:05.9]}
39. Kf2 {[%clk 0:00:12.9]} 39... Qg5 {[%clk 0:00:06.5]} 40. Rxb6 {[%clk
0:00:10.9]} 40... Rxf4+ {[%clk 0:00:05.7]} 41. Ke2 {[%clk 0:00:11.8]} 41... Qg2+
{[%clk 0:00:03.7]} 42. Ke1 {[%clk 0:00:10.6]} 42... Qf3 {[%clk 0:00:03.4]} 43.
Qxf3 {[%clk 0:00:10.3]} 43... Rxf3 {[%clk 0:00:04.3]} 44. Rc6 {[%clk 0:00:09.4]}
44... Bg4 {[%clk 0:00:02.2]} 45. Ra1 {[%clk 0:00:06.4]} 45... Rh3 {[%clk
0:00:02]} 46. Kd2 {[%clk 0:00:06.5]} 46... Rh2+ {[%clk 0:00:02]} 47. Kc3 {[%clk
0:00:07]} 47... Bd7 {[%clk 0:00:01.3]} 48. Rc7 {[%clk 0:00:06.7]} 48... Kg6
{[%clk 0:00:02.2]} 49. Rxd7 {[%clk 0:00:07]} 49... h3 {[%clk 0:00:02.8]} 50.
Rxa4 {[%clk 0:00:07.1]} 50... Kg5 {[%clk 0:00:03.2]} 51. Ra6 {[%clk 0:00:06.5]}
51... Rg2 {[%clk 0:00:02.6]} 52. Rg7+ {[%clk 0:00:06.6]} 52... Kh5 {[%clk
0:00:02.9]} 53. Rh7 {[%clk 0:00:06.9]} 53... h2 {[%clk 0:00:02]} 54. Raxh6+
{[%clk 0:00:06.1]} 54... Kg4 {[%clk 0:00:02.9]} 55. Rxh2 {[%clk 0:00:06.6]}
55... Rg1 {[%clk 0:00:02.7]} 56. Rg7+ {[%clk 0:00:06.5]} 56... Kf3 {[%clk
0:00:02.1]} 57. Rxg1 {[%clk 0:00:07]} 1-0

[Event "*** Titled Tuesday Blitz"]
[Site "Chess.com"]
[Date "2020.04.21"]
[Round "6"]
[White "adricalderon8"]
[Black "CzechmVIII"]
[Result "1/2-1/2"]
[WhiteElo "2409"]
[BlackElo "2249"]
[TimeControl "180+1"]
[EndTime "11:09:48 PDT"]
[Termination "Game drawn - insufficient material"]

1. e4 {[%clk 0:03:00]} 1... c5 {[%clk 0:02:59.9]} 2. Nf3 {[%clk 0:02:57.9]} 2...
d6 {[%clk 0:02:59.9]} 3. Nc3 {[%clk 0:02:55.5]} 3... Nc6 {[%clk 0:02:58.1]} 4.
d4 {[%clk 0:02:55.3]} 4... cxd4 {[%clk 0:02:58.3]} 5. Nxd4 {[%clk 0:02:56.2]}
5... g6 {[%clk 0:02:58.2]} 6. Be3 {[%clk 0:02:55.6]} 6... Bg7 {[%clk 0:02:54.7]}
7. f3 {[%clk 0:02:55.6]} 7... Nf6 {[%clk 0:02:54.4]} 8. Qd2 {[%clk 0:02:55.8]}
8... O-O {[%clk 0:02:54.4]} 9. O-O-O {[%clk 0:02:56.1]} 9... d5 {[%clk
0:02:54.7]} 10. exd5 {[%clk 0:02:52.7]} 10... Nxd5 {[%clk 0:02:53.2]} 11. Nxc6
{[%clk 0:02:52.8]} 11... bxc6 {[%clk 0:02:54.1]} 12. Bd4 {[%clk 0:02:53.1]}
12... Nxc3 {[%clk 0:02:52.1]} 13. Qxc3 {[%clk 0:02:50.7]} 13... Bh6+ {[%clk
0:02:52.1]} 14. Be3 {[%clk 0:02:48]} 14... Bxe3+ {[%clk 0:02:52]} 15. Qxe3
{[%clk 0:02:48.2]} 15... Qb6 {[%clk 0:02:52]} 16. Qxe7 {[%clk 0:02:39.9]} 16...
Be6 {[%clk 0:02:51.6]} 17. Kb1 {[%clk 0:02:37.2]} 17... Rad8 {[%clk 0:02:27.7]}
18. Bd3 {[%clk 0:02:21.8]} 18... Rd5 {[%clk 0:02:26.1]} 19. h4 {[%clk
0:02:20.8]} 19... Rfd8 {[%clk 0:01:50.5]} 20. h5 {[%clk 0:02:16.8]} 20... Bf5
{[%clk 0:01:32.6]} 21. hxg6 {[%clk 0:01:53.9]} 21... Bxg6 {[%clk 0:01:30.9]} 22.
Qe2 {[%clk 0:01:39]} 22... Bxd3 {[%clk 0:01:20.6]} 23. cxd3 {[%clk 0:01:36.9]}
23... Qd4 {[%clk 0:01:12.7]} 24. g3 {[%clk 0:01:05.2]} 24... Rb5 {[%clk
0:01:10.7]} 25. Rh4 {[%clk 0:01:01.9]} 25... Qe5 {[%clk 0:00:51.1]} 26. Re4
{[%clk 0:00:59.1]} 26... Qf6 {[%clk 0:00:42.2]} 27. Rh1 {[%clk 0:00:58.3]} 27...
Rdb8 {[%clk 0:00:37.9]} 28. Rg4+ {[%clk 0:00:52.7]} 28... Kf8 {[%clk 0:00:30.8]}
29. b3 {[%clk 0:00:52.7]} 29... Rxb3+ {[%clk 0:00:22.8]} 30. axb3 {[%clk
0:00:53.6]} 30... Rxb3+ {[%clk 0:00:23]} 31. Ka2 {[%clk 0:00:54.5]} 31... Rb6
{[%clk 0:00:12.9]} 32. d4 {[%clk 0:00:52.7]} 32... Qf5 {[%clk 0:00:09.8]} 33.
Rg8+ {[%clk 0:00:13.9]} 33... Kxg8 {[%clk 0:00:09.3]} 34. Qe8+ {[%clk
0:00:14.8]} 34... Kg7 {[%clk 0:00:09.7]} 35. Qe5+ {[%clk 0:00:15.7]} 35... Qxe5
{[%clk 0:00:10]} 36. dxe5 {[%clk 0:00:16.6]} 36... Rb4 {[%clk 0:00:07.7]} 37. f4
{[%clk 0:00:15.5]} 37... Rd4 {[%clk 0:00:07.7]} 38. Rc1 {[%clk 0:00:14.4]} 38...
Rd2+ {[%clk 0:00:07.1]} 39. Kb1 {[%clk 0:00:10.6]} 39... Rd3 {[%clk 0:00:07.3]}
40. Rxc6 {[%clk 0:00:10.5]} 40... Rxg3 {[%clk 0:00:06.9]} 41. Rc7 {[%clk
0:00:10.9]} 41... Rf3 {[%clk 0:00:06.5]} 42. e6 {[%clk 0:00:11]} 42... Rxf4
{[%clk 0:00:05.1]} 43. Rxa7 {[%clk 0:00:09.2]} 43... Kf8 {[%clk 0:00:03.1]} 44.
Kc2 {[%clk 0:00:07.6]} 44... fxe6 {[%clk 0:00:02.8]} 45. Rxh7 {[%clk 0:00:07.7]}
45... Rf7 {[%clk 0:00:02.2]} 46. Rh2 {[%clk 0:00:05.8]} 46... Ke7 {[%clk
0:00:02.5]} 47. Kd3 {[%clk 0:00:06.4]} 47... Kd6 {[%clk 0:00:02.2]} 48. Ke4
{[%clk 0:00:07]} 48... Rf5 {[%clk 0:00:02.4]} 49. Rd2+ {[%clk 0:00:07.3]} 49...
Ke7 {[%clk 0:00:02.8]} 50. Ra2 {[%clk 0:00:07.9]} 50... Rd5 {[%clk 0:00:02.9]}
51. Ra6 {[%clk 0:00:08.1]} 51... Rd6 {[%clk 0:00:03]} 52. Ra7+ {[%clk
0:00:07.8]} 52... Kf6 {[%clk 0:00:03.1]} 53. Ra5 {[%clk 0:00:07.5]} 53... Rd5
{[%clk 0:00:03.2]} 54. Rxd5 {[%clk 0:00:07.3]} 54... exd5+ {[%clk 0:00:03.6]}
55. Kxd5 {[%clk 0:00:08.2]} 1/2-1/2